fUST/lending_fUST_20240207
["ID","MTS","AMOUNT","RATE_DAILY","PERIOD"]
[313404074,1707318432930,-2316.7,0.00027945,3]
[313404075,1707318432952,-2781.93,0.00027945,3]
[313404076,1707318432975,-2514.71,0.00027945,3]
[313404077,1707318432998,-1559.45,0.00027945,3]
[313404078,1707318433027,-1894.24,0.00027945,3]
[313404079,1707318433048,-1025.79,0.00027945,3]
[313404080,1707318433073,-5405.11,0.00027945,3]
[313404081,1707318433094,-1147.14,0.00027945,3]
[313404082,1707318433114,-1213.97,0.00027945,3]
[313404083,1707318433134,-687.98,0.00027945,3]
[313404084,1707318433155,-945.0,0.00027945,3]
[313404085,1707318433180,-754.1,0.00027945,3]
[313404086,1707318433202,-1316.22,0.00027945,3]
[313404087,1707318433223,-905.95,0.00027945,3]
[313404088,1707318433244,-1669.56,0.00027945,3]
[313404089,1707318433267,-1000.0,0.00027945,2]
[313404090,1707318433289,-897.59,0.00027945,3]
[313404091,1707318433311,-2127.2364011,0.00027945,3]
[313404093,1707318447097,-1358.70066073,0.00023071,5]
[313404094,1707318447118,-192.10662954,0.00023071,2]
[313404095,1707318447140,-154.93802479,0.00025395,4]
[313404096,1707318447160,-35642.4404407,0.00026451,2]
[313404097,1707318447181,-3706.44,0.00027387,3]
[313404098,1707318447202,-1610.44,0.00027397,3]
[313404099,1707318447222,-153.9082875,0.00027397,2]
[313404100,1707318447242,-1610.44,0.00027671,3]
[313404101,1707318447264,-3088.7,0.00027935,3]
[313404102,1707318447285,-844.00586649,0.00027943,5]
[313404103,1707318447304,-741.39467799,0.00027943,2]
[313404104,1707318447324,-1583.18094812,0.00027944,2]
[313404105,1707318447344,-14103.84015234,0.00027944,2]
[313404106,1707318447365,-3303.0935989,0.00027945,3]
[313404107,1707318447385,-1135.46,0.00027945,3]
[313404108,1707318447405,-5110.42,0.00027945,3]
[313404109,1707318447425,-3630.0253229,0.00027945,3]
[313404111,1707318449084,-4435.8346771,0.00027945,3]
[313404112,1707318449106,-15065.32,0.00027945,3]
[313404113,1707318449125,-1610.44,0.00027945,3]
[313404114,1707318449145,-153.0,0.00027945,2]
[313404115,1707318449165,-153.0,0.00027945,2]
[313404116,1707318449185,-172.497189,0.00027946,2]
[313404117,1707318449205,-165.794661,0.00027946,2]
[313404118,1707318449225,-620.01159664,0.00027975,2]
[313404119,1707318449245,-3294.61567587,0.00028,2]
[313404120,1707318449265,-154.9690062,0.00028,2]
[313404121,1707318449285,-1000.0,0.00028,28]
[313404122,1707318449305,-151.43068375,0.00028,2]
[313404123,1707318449325,-155.0,0.00028,2]
[313404124,1707318449345,-3556.0,0.00028,4]
[313404125,1707318449364,-31108.65258044,0.000282,3]
[313404175,1707318632604,-154.93802479,0.00024899,4]
[313404177,1707318632614,-1667.5943976,0.000249,2]
[313404179,1707318632623,-741.39467799,0.00027396,2]
[313404181,1707318632632,-593.84,0.00027397,3]
[313404182,1707318632641,-500.0,0.00027397,3]
[313404184,1707318632650,-1657.46,0.00027397,3]
[313404186,1707318632661,-602.43,0.00027397,3]
[313404188,1707318632669,-2027.11,0.00027397,3]
[313404190,1707318632679,-2200.37,0.00027397,3]
[313404193,1707318632688,-2434.18,0.00027397,3]
[313404196,1707318632697,-1364.52,0.00027397,3]
[313404198,1707318632706,-1003.75,0.00027397,3]
[313404201,1707318632715,-897.57,0.00027397,3]
[313404204,1707318632724,-1062.22,0.00027397,3]
[313404205,1707318632734,-500.0,0.00027397,3]
[313404206,1707318632742,-1964.24,0.00027397,3]
[313404207,1707318632751,-826.88,0.00027397,3]
[313404208,1707318632760,-606.75128085,0.00027397,3]
[313404209,1707318632770,-1151.69,0.00027397,3]
[313404210,1707318632779,-1460.86,0.00027397,3]
[313404211,1707318632788,-993.52,0.00027397,3]
[313404212,1707318632797,-4751.54,0.00027397,3]
[313404213,1707318632805,-593.84,0.00027671,3]
[313404214,1707318632815,-500.0,0.00027671,3]
[313404215,1707318632824,-1657.46,0.00027671,3]
[313404216,1707318632834,-602.43,0.00027671,3]
[313404217,1707318632843,-2027.11,0.00027671,3]
[313404218,1707318632852,-2200.37,0.00027671,3]
[313404219,1707318632861,-2434.18,0.00027671,3]
[313404220,1707318632871,-1364.52,0.00027671,3]
[313404221,1707318632880,-1003.75,0.00027671,3]
[313404222,1707318632890,-897.57,0.00027671,3]
[313404223,1707318632899,-1062.22,0.00027671,3]
[313404224,1707318632908,-500.0,0.00027671,3]
[313404225,1707318632917,-1964.24,0.00027671,3]
[313404226,1707318632926,-826.88,0.00027671,3]
[313404227,1707318632935,-1151.69,0.00027671,3]
[313404228,1707318632948,-1460.86,0.00027671,3]
[313404229,1707318632957,-993.52,0.00027671,3]
[313404230,1707318632965,-4751.54,0.00027671,3]
[313404231,1707318632975,-593.84,0.00027945,3]
[313404232,1707318632985,-500.0,0.00027945,3]
[313404233,1707318632994,-1657.46,0.00027945,3]
[313404234,1707318633003,-602.43,0.00027945,3]
[313404235,1707318633012,-2027.11,0.00027945,3]
[313404236,1707318633023,-1260.68768877,0.00027945,3]
[313404260,1707318638647,-1997.19860237,0.00024898,2]
[313404265,1707318638717,-2326.84067569,0.00024898,2]
[313404267,1707318638726,-511.89299392,0.000275,2]
[313404269,1707318638735,-939.68231123,0.00027945,3]
[313404270,1707318638744,-2434.18,0.00027945,3]
[313404272,1707318638753,-1364.52,0.00027945,3]
[313404273,1707318638762,-1003.75,0.00027945,3]
[313404275,1707318638771,-897.57,0.00027945,3]
[313404276,1707318638781,-1062.22,0.00027945,3]
[313404277,1707318638790,-500.0,0.00027945,3]
[313404278,1707318638800,-1964.24,0.00027945,3]
[313404279,1707318638809,-826.88,0.00027945,3]
[313404280,1707318638818,-1151.69,0.00027945,3]
[313404281,1707318638827,-1460.86,0.00027945,3]
[313404282,1707318638836,-993.52,0.00027945,3]
[313404283,1707318638845,-4751.54,0.00027945,3]
[313404284,1707318638854,-1778.0,0.00028,4]
[313404285,1707318638863,-154.93802479,0.00028,2]
[313404286,1707318638873,-151.55215444,0.000281,2]
[313404287,1707318638882,-1972.53,0.0002816,3]
[313404288,1707318638892,-2367.04,0.0002817,3]
[313404289,1707318638901,-3294.61567587,0.00028179,2]
[313404290,1707318638910,-1241.28,0.0002818,3]
[313404291,1707318638920,-4729.47,0.00028199,3]
[313404292,1707318638930,-659.83,0.00028199,3]
[313404293,1707318638940,-4471.61,0.00028199,3]
[313404294,1707318638951,-442982.19571655,0.000282,3]
[313404295,1707318638959,-2622.30066387,0.000282,2]
[313404296,1707318638969,-2622.30066387,0.000282,2]
[313404297,1707318638978,-2622.30066387,0.000282,2]
[313404298,1707318638988,-2622.30066387,0.000282,2]
[313404299,1707318638997,-2622.30066387,0.000282,2]
[313404300,1707318639006,-2622.30066387,0.000282,2]
[313404301,1707318639015,-998.00755356,0.000282,2]
[313404302,1707318639084,-1624.29311031,0.000282,2]
[313404303,1707318639094,-2622.30066387,0.000282,2]
[313404304,1707318639103,-2622.30066387,0.000282,2]
[313404305,1707318639112,-2622.30066387,0.000282,2]
[313404306,1707318639121,-154.93802479,0.000282,2]
[313404307,1707318639131,-1358.70066073,0.000282,5]
[313404308,1707318639140,-1643.77,0.00028208,3]
[313404309,1707318639149,-260.85782428,0.00028215,2]
[313404310,1707318639158,-155.07627542,0.00028215,2]
[313404311,1707318639169,-295.61602706,0.00028215,2]
[313404312,1707318639178,-10358.70611797,0.00028218,20]
[313404313,1707318639187,-500.0,0.00028219,3]
[313404314,1707318639196,-500.0,0.00028219,3]
[313404315,1707318639205,-500.0,0.00028219,2]
[313404316,1707318639215,-661.93,0.00028219,3]
[313404317,1707318639224,-500.0,0.00028219,2]
[313404318,1707318639233,-1793.75,0.00028219,3]
[313404319,1707318639243,-713.29,0.00028219,3]
[313404320,1707318639252,-1290.07,0.00028219,3]
[313404321,1707318639261,-687.98,0.00028219,3]
[313404322,1707318639271,-905.95,0.00028219,3]
[313404323,1707318639280,-1000.0,0.00028219,2]
[313404324,1707318639289,-897.59,0.00028219,3]
[313404325,1707318639299,-8065.86,0.00028219,3]
[313404326,1707318639308,-5259.8680993,0.00028219,3]
[313404327,1707318639321,-9805.4519007,0.00028219,3]
[313404328,1707318639331,-1610.44,0.00028219,3]
[313404329,1707318639341,-593.84,0.00028219,3]
[313404330,1707318639350,-500.0,0.00028219,3]
[313404331,1707318639360,-1657.46,0.00028219,3]
[313404332,1707318639369,-602.43,0.00028219,3]
[313404333,1707318639381,-2027.11,0.00028219,3]
[313404334,1707318639391,-2200.37,0.00028219,3]
[313404335,1707318639400,-2434.18,0.00028219,3]
[313404336,1707318639409,-1364.52,0.00028219,3]
[313404337,1707318639488,-1003.75,0.00028219,3]
[313404338,1707318639512,-897.57,0.00028219,3]
[313404339,1707318639521,-1062.22,0.00028219,3]
[313404340,1707318639531,-500.0,0.00028219,3]
[313404341,1707318639540,-1964.24,0.00028219,3]
[313404342,1707318639549,-826.88,0.00028219,3]
[313404343,1707318639559,-1151.69,0.00028219,3]
[313404344,1707318639569,-1460.86,0.00028219,3]
[313404345,1707318639578,-993.52,0.00028219,3]
[313404346,1707318639587,-4751.54,0.00028219,3]
[313404347,1707318639596,-156.5099535,0.00028219,2]
[313404348,1707318639605,-153.0,0.00028219,2]
[313404349,1707318639614,-153.0,0.00028219,2]
[313404350,1707318639624,-471.5209636,0.00028372,2]
[313404351,1707318639632,-68269.53164537,0.00028373,5]
[313404352,1707318639641,-4729.47,0.00028473,3]
[313404353,1707318639651,-659.83,0.00028473,3]
[313404354,1707318639660,-4471.61,0.00028473,3]
[313404355,1707318639670,-500.0,0.00028493,3]
[313404356,1707318639680,-500.0,0.00028493,3]
[313404357,1707318639689,-500.0,0.00028493,2]
[313404358,1707318639699,-661.93,0.00028493,3]
[313404359,1707318639708,-500.0,0.00028493,2]
[313404360,1707318639717,-1793.75,0.00028493,3]
[313404361,1707318639726,-713.29,0.00028493,3]
[313404362,1707318639735,-1290.07,0.00028493,3]
[313404363,1707318639744,-687.98,0.00028493,3]
[313404364,1707318639754,-905.95,0.00028493,3]
[313404365,1707318639763,-1000.0,0.00028493,2]
[313404366,1707318639772,-897.59,0.00028493,3]
[313404367,1707318639781,-8065.86,0.00028493,3]
[313404368,1707318639790,-15065.32,0.00028493,3]
[313404369,1707318639799,-1610.44,0.00028493,3]
[313404370,1707318639808,-593.84,0.00028493,3]
[313404371,1707318639817,-500.0,0.00028493,3]
[313404372,1707318639826,-1657.46,0.00028493,3]
[313404373,1707318639835,-602.43,0.00028493,3]
[313404374,1707318639847,-2027.11,0.00028493,3]
[313404375,1707318639856,-2200.37,0.00028493,3]
[313404376,1707318639865,-2434.18,0.00028493,3]
[313404377,1707318639875,-1364.52,0.00028493,3]
[313404378,1707318639885,-1003.75,0.00028493,3]
[313404379,1707318639894,-897.57,0.00028493,3]
[313404380,1707318639903,-1062.22,0.00028493,3]
[313404381,1707318639912,-500.0,0.00028493,3]
[313404382,1707318639922,-1964.24,0.00028493,3]
[313404383,1707318639931,-826.88,0.00028493,3]
[313404384,1707318639940,-1151.69,0.00028493,3]
[313404385,1707318639953,-1460.86,0.00028493,3]
[313404386,1707318639962,-993.52,0.00028493,3]
[313404387,1707318639970,-4751.54,0.00028493,3]
[313404388,1707318639980,-330.9567163,0.00028493,2]
[313404389,1707318639988,-306.542544,0.00028493,2]
[313404390,1707318639998,-153.873444,0.00028493,2]
[313404391,1707318640008,-399.4848484,0.00028493,2]
[313404392,1707318640017,-153.0,0.00028493,2]
[313404393,1707318640026,-154.000139,0.00028493,2]
[313404394,1707318640036,-153.0,0.00028493,2]
[313404395,1707318640045,-153.0,0.00028493,2]
[313404396,1707318640054,-200000.0,0.000285,7]
[313404397,1707318640063,-172.497189,0.00028645,2]
[313404398,1707318640072,-4729.47,0.00028747,3]
[313404399,1707318640081,-659.83,0.00028747,3]
[313404400,1707318640090,-4285.47121947,0.00028747,3]
[313404409,1707318641786,-186.13878053,0.00028747,3]
[313404410,1707318641795,-150.0,0.00028765,2]
[313404411,1707318641805,-500.0,0.00028766,2]
[313404412,1707318641814,-188.58416817,0.00028766,2]
[313404413,1707318641825,-500.0,0.00028766,2]
[313404414,1707318641835,-177.62831578,0.00028766,2]
[313404415,1707318641844,-500.0,0.00028766,2]
[313404416,1707318641854,-500.0,0.00028766,2]
[313404417,1707318641863,-500.0,0.00028766,2]
[313404419,1707318641872,-277.19173623,0.00028766,2]
[313404421,1707318641881,-500.0,0.00028766,2]
[313404422,1707318641891,-500.0,0.00028766,2]
[313404424,1707318641899,-611.39096997,0.00028766,2]
[313404425,1707318641909,-500.0,0.00028766,2]
[313404426,1707318641918,-500.43846034,0.00028766,2]
[313404427,1707318641927,-500.0,0.00028766,2]
[313404428,1707318641936,-500.0,0.00028766,2]
[313404429,1707318641946,-500.0,0.00028766,2]
[313404430,1707318641957,-500.0,0.00028766,2]
[313404431,1707318641966,-322.38459222,0.00028766,2]
[313404432,1707318641975,-500.0,0.00028767,3]
[313404433,1707318641984,-500.0,0.00028767,3]
[313404434,1707318641994,-500.0,0.00028767,2]
[313404435,1707318642004,-661.93,0.00028767,3]
[313404436,1707318642013,-500.0,0.00028767,2]
[313404437,1707318642022,-1793.75,0.00028767,3]
[313404438,1707318642031,-713.29,0.00028767,3]
[313404439,1707318642040,-1290.07,0.00028767,3]
[313404440,1707318642049,-687.98,0.00028767,3]
[313404441,1707318642058,-905.95,0.00028767,3]
[313404442,1707318642067,-1000.0,0.00028767,2]
[313404443,1707318642076,-897.59,0.00028767,3]
[313404444,1707318642085,-8065.86,0.00028767,3]
[313404445,1707318642094,-15065.32,0.00028767,3]
[313404446,1707318642103,-1610.44,0.00028767,3]
[313404447,1707318642112,-593.84,0.00028767,3]
[313404448,1707318642121,-500.0,0.00028767,3]
[313404449,1707318642130,-1657.46,0.00028767,3]
[313404450,1707318642139,-602.43,0.00028767,3]
[313404451,1707318642148,-2027.11,0.00028767,3]
[313404452,1707318642157,-2200.37,0.00028767,3]
[313404453,1707318642166,-2434.18,0.00028767,3]
[313404454,1707318642175,-1364.52,0.00028767,3]
[313404455,1707318642184,-1003.75,0.00028767,3]
[313404456,1707318642193,-897.57,0.00028767,3]
[313404457,1707318642203,-1062.22,0.00028767,3]
[313404458,1707318642213,-500.0,0.00028767,3]
[313404459,1707318642222,-1964.24,0.00028767,3]
[313404460,1707318642231,-826.88,0.00028767,3]
[313404461,1707318642240,-1151.69,0.00028767,3]
[313404462,1707318642249,-1460.86,0.00028767,3]
[313404463,1707318642258,-993.52,0.00028767,3]
[313404464,1707318642268,-4751.54,0.00028767,3]
[313404465,1707318642277,-1430.326,0.00028789,6]
[313404466,1707318642287,-2000.0,0.00028868,2]
[313404467,1707318642296,-2000.0,0.00028868,2]
[313404468,1707318642306,-1000.0,0.00028888,7]
[313404469,1707318642315,-2441.09158676,0.00028888,10]
[313404470,1707318642328,-1669.03118031,0.00028888,10]
[313404471,1707318642339,-10164.81149097,0.00028888,10]
[313404472,1707318642351,-4980.7553408,0.00028888,10]
[313404490,1707318643633,-4735.67330012,0.00027397,3]
[313404491,1707318643656,-0.03478146,0.00027397,3]
[313404492,1707318643669,-771.34964187,0.00027397,3]
[313404501,1707318646651,-542.34227655,0.00027397,3]
[313404502,1707318646660,-6049.4,0.00027671,3]
[313404503,1707318646670,-6049.4,0.00027945,3]
[313404504,1707318646680,-3901.68344345,0.00028219,3]
[313404505,1707318646691,-2147.71655655,0.00028219,3]
[313404506,1707318646701,-6049.4,0.00028493,3]
[313404507,1707318646710,-154.93802479,0.00028746,4]
[313404510,1707318646719,-6049.4,0.00028767,3]
[313404514,1707318646729,-81046.35154796,0.00028888,10]
[313404515,1707318646738,-741.39467799,0.0002894,2]
[313404516,1707318646747,-1043.07756383,0.00028941,2]
[313404517,1707318646756,-155.04961588,0.00029,2]
[313404518,1707318646765,-155.01395126,0.00029,2]
[313404519,1707318646774,-65802.0,0.00029,2]
[313404520,1707318646783,-1000.0,0.00029,29]
[313404521,1707318646792,-1030.20576942,0.00029,2]
[313404522,1707318646801,-15000.0,0.00029,2]
[313404523,1707318646810,-244.9298207,0.00029,10]
[313404524,1707318646820,-459.60686937,0.00029,3]
[313404525,1707318646829,-8000.0,0.00029,2]
[313404526,1707318646838,-229.89764501,0.00029,2]
[313404527,1707318646847,-1096.83482457,0.00029,2]
[313404528,1707318646855,-683.46496987,0.00029,2]
[313404530,1707318646864,-313.17501102,0.00029,6]
[313404532,1707318646873,-156.47751779,0.00029,2]
[313404534,1707318646882,-172.50976368,0.00029,2]
[313404544,1707318646967,-227.64707964,0.00029,2]
[313404545,1707318646976,-165.83929447,0.00029,2]
[313404548,1707318646986,-500.0,0.00029,2]
[313404550,1707318646995,-500.0,0.00029,2]
[313404552,1707318647005,-873.60642443,0.00029,4]
[313404554,1707318647014,-1777.0,0.00029,4]
[313404555,1707318647024,-4729.47,0.00029021,3]
[313404558,1707318647035,-659.83,0.00029021,3]
[313404559,1707318647046,-4471.61,0.00029021,3]
[313404561,1707318647054,-500.0,0.00029041,3]
[313404563,1707318647063,-500.0,0.00029041,3]
[313404565,1707318647072,-500.0,0.00029041,2]
[313404568,1707318647087,-661.93,0.00029041,3]
[313404569,1707318647095,-1793.75,0.00029041,3]
[313404571,1707318647105,-713.29,0.00029041,3]
[313404574,1707318647114,-1290.07,0.00029041,3]
[313404576,1707318647123,-687.98,0.00029041,3]
[313404577,1707318647133,-905.95,0.00029041,3]
[313404579,1707318647142,-1000.0,0.00029041,2]
[313404581,1707318647151,-897.59,0.00029041,3]
[313404584,1707318647161,-15065.32,0.00029041,3]
[313404586,1707318647170,-1610.44,0.00029041,3]
[313404587,1707318647179,-593.84,0.00029041,3]
[313404589,1707318647189,-500.0,0.00029041,3]
[313404591,1707318647198,-1657.46,0.00029041,3]
[313404593,1707318647207,-602.43,0.00029041,3]
[313404595,1707318647215,-2027.11,0.00029041,3]
[313404597,1707318647224,-2200.37,0.00029041,3]
[313404599,1707318647235,-2434.18,0.00029041,3]
[313404601,1707318647244,-1364.52,0.00029041,3]
[313404603,1707318647253,-1003.75,0.00029041,3]
[313404605,1707318647262,-897.57,0.00029041,3]
[313404608,1707318647273,-1062.22,0.00029041,3]
[313404609,1707318647282,-500.0,0.00029041,3]
[313404611,1707318647291,-1964.24,0.00029041,3]
[313404613,1707318647300,-826.88,0.00029041,3]
[313404615,1707318647309,-1151.69,0.00029041,3]
[313404617,1707318647318,-1460.86,0.00029041,3]
[313404619,1707318647328,-993.52,0.00029041,3]
[313404621,1707318647336,-4751.54,0.00029041,3]
[313404623,1707318647345,-6049.4,0.00029041,3]
[313404625,1707318647354,-5425.08037085,0.00029184,2]
[313404627,1707318647363,-4729.47,0.00029295,3]
[313404629,1707318647372,-659.83,0.00029295,3]
[313404631,1707318647382,-4471.61,0.00029295,3]
[313404633,1707318647391,-155.84306095,0.00029312,2]
[313404635,1707318647400,-500.0,0.00029315,3]
[313404637,1707318647409,-500.0,0.00029315,3]
[313404639,1707318647418,-500.0,0.00029315,2]
[313404641,1707318647428,-661.93,0.00029315,3]
[313404643,1707318647436,-1793.75,0.00029315,3]
[313404645,1707318647445,-84.98194997,0.00029315,3]
[313404647,1707318647458,-628.30805003,0.00029315,3]
[313404650,1707318647467,-86.42194997,0.00029315,3]
[313404652,1707318647481,-1203.64805003,0.00029315,3]
[313404654,1707318647490,-687.98,0.00029315,3]
[313404656,1707318647498,-905.95,0.00029315,3]
[313404658,1707318647507,-1000.0,0.00029315,2]
[313404660,1707318647516,-897.59,0.00029315,3]
[313404662,1707318647525,-15065.32,0.00029315,3]
[313404664,1707318647534,-1610.44,0.00029315,3]
[313404666,1707318647543,-593.84,0.00029315,3]
[313404668,1707318647552,-500.0,0.00029315,3]
[313404670,1707318647561,-1657.46,0.00029315,3]
[313404672,1707318647570,-602.43,0.00029315,3]
[313404674,1707318647579,-2027.11,0.00029315,3]
[313404676,1707318647588,-2200.37,0.00029315,3]
[313404678,1707318647598,-2434.18,0.00029315,3]
[313404680,1707318647606,-1364.52,0.00029315,3]
[313404682,1707318647616,-1003.75,0.00029315,3]
[313404684,1707318647624,-897.57,0.00029315,3]
[313404686,1707318647634,-1062.22,0.00029315,3]
[313404688,1707318647642,-500.0,0.00029315,3]
[313404690,1707318647651,-1964.24,0.00029315,3]
[313404692,1707318647660,-826.88,0.00029315,3]
[313404694,1707318647669,-1151.69,0.00029315,3]
[313404696,1707318647679,-1460.86,0.00029315,3]
[313404698,1707318647687,-993.52,0.00029315,3]
[313404700,1707318647696,-4751.54,0.00029315,3]
[313404701,1707318647706,-6049.4,0.00029315,3]
[313404703,1707318647715,-165.794661,0.00029343,2]
[313404705,1707318647724,-172.497189,0.00029343,2]
[313404707,1707318647733,-151.0,0.00029354,2]
[313404709,1707318647742,-166.09077311,0.00029489,2]
[313404711,1707318647751,-169431.75871701,0.0002949,7]
[313404713,1707318647760,-2468.18608317,0.000295,2]
[313404715,1707318647770,-4729.47,0.00029569,3]
[313404717,1707318647779,-659.83,0.00029569,3]
[313404720,1707318647788,-4471.61,0.00029569,3]
[313404722,1707318647798,-500.0,0.00029589,3]
[313404723,1707318647807,-500.0,0.00029589,3]
[313404724,1707318647816,-500.0,0.00029589,2]
[313404725,1707318647825,-661.93,0.00029589,3]
[313404726,1707318647836,-1793.75,0.00029589,3]
[313404727,1707318647848,-713.29,0.00029589,3]
[313404728,1707318647858,-1290.07,0.00029589,3]
[313404729,1707318647867,-687.98,0.00029589,3]
[313404730,1707318647876,-905.95,0.00029589,3]
[313404731,1707318647885,-1000.0,0.00029589,2]
[313404732,1707318647894,-897.59,0.00029589,3]
[313404734,1707318647903,-15065.32,0.00029589,3]
[313404736,1707318647912,-1610.44,0.00029589,3]
[313404738,1707318647921,-593.84,0.00029589,3]
[313404740,1707318647932,-241.29379975,0.00029589,3]
[313404742,1707318647941,-1657.46,0.00029589,3]
[313404744,1707318647953,-602.43,0.00029589,3]
[313404746,1707318647961,-2027.11,0.00029589,3]
[313404748,1707318647970,-2200.37,0.00029589,3]
[313404750,1707318647979,-2434.18,0.00029589,3]
[313404752,1707318647988,-1364.52,0.00029589,3]
[313404754,1707318647998,-1003.75,0.00029589,3]
[313404756,1707318648006,-897.57,0.00029589,3]
[313404757,1707318648015,-1062.22,0.00029589,3]
[313404759,1707318648025,-500.0,0.00029589,3]
[313404761,1707318648035,-1964.24,0.00029589,3]
[313404764,1707318648044,-826.88,0.00029589,3]
[313404766,1707318648053,-1151.69,0.00029589,3]
[313404768,1707318648062,-1460.86,0.00029589,3]
[313404770,1707318648071,-993.52,0.00029589,3]
[313404772,1707318648080,-4751.54,0.00029589,3]
[313404774,1707318648089,-6049.4,0.00029589,3]
[313404777,1707318648119,-150.0,0.00029765,2]
[313404779,1707318648130,-4729.47,0.00029843,3]
[313404781,1707318648140,-659.83,0.00029843,3]
[313404783,1707318648150,-4471.61,0.00029843,3]
[313404785,1707318648160,-500.0,0.00029863,3]
[313404787,1707318648170,-500.0,0.00029863,3]
[313404789,1707318648181,-500.0,0.00029863,2]
[313404791,1707318648190,-661.93,0.00029863,3]
[313404793,1707318648199,-1793.75,0.00029863,3]
[313404795,1707318648208,-713.29,0.00029863,3]
[313404797,1707318648218,-1290.07,0.00029863,3]
[313404799,1707318648227,-687.98,0.00029863,3]
[313404802,1707318648237,-905.95,0.00029863,3]
[313404804,1707318648246,-1000.0,0.00029863,2]
[313404806,1707318648255,-897.59,0.00029863,3]
[313404808,1707318648265,-15065.32,0.00029863,3]
[313404810,1707318648274,-1610.44,0.00029863,3]
[313404812,1707318648283,-593.84,0.00029863,3]
[313404813,1707318648293,-1657.46,0.00029863,3]
[313404816,1707318648302,-602.43,0.00029863,3]
[313404818,1707318648311,-2027.11,0.00029863,3]
[313404819,1707318648321,-2200.37,0.00029863,3]
[313404822,1707318648331,-2434.18,0.00029863,3]
[313404824,1707318648341,-1364.52,0.00029863,3]
[313404826,1707318648351,-1003.75,0.00029863,3]
[313404828,1707318648361,-897.57,0.00029863,3]
[313404830,1707318648370,-1062.22,0.00029863,3]
[313404832,1707318648379,-522.9715363,0.00029863,3]
[313404834,1707318648389,-1964.24,0.00029863,3]
[313404836,1707318648398,-826.88,0.00029863,3]
[313404838,1707318648407,-1072.00524553,0.00029863,3]
[313405335,1707319831705,-154.93802479,0.00023678,2]
[313405336,1707319831715,-763.3743027,0.00023679,5]
[313405338,1707319831724,-427.22785454,0.0002368,2]
[313405340,1707319831734,-154.93802479,0.0002368,4]
[313405342,1707319831743,-326.42112036,0.00023681,2]
[313405343,1707319831752,-166.666666,0.00023689,2]
[313405345,1707319831761,-1245.2446068,0.00023709,2]
[313405347,1707319831771,-13917.4179708,0.0002461,2]
[313405349,1707319831780,-1292.39014645,0.00025264,2]
[313405351,1707319831789,-169.091554,0.00025332,2]
[313405353,1707319831799,-3059.95,0.0002689,3]
[313405355,1707319831808,-4100.94452377,0.0002689,3]
[313405357,1707319831820,-652.85347624,0.0002689,3]
[313405359,1707319831831,-1081.33199999,0.0002689,3]
[313405361,1707319831839,-4862.61,0.0002689,3]
[313405363,1707319831849,-6335.54895595,0.0002689,2]
[313405366,1707319831860,-4185.38958654,0.0002689,2]
[313405466,1707319837801,-5484.95434568,0.0002689,2]
[313405469,1707319837813,-1522.73031777,0.0002689,2]
[313405474,1707319837860,-2471.37679406,0.0002689,2]
[313405476,1707319837869,-55325.59721283,0.000269,7]
[313405479,1707319837880,-672.68140241,0.000269,7]
[313405623,1707319840936,-3606.033411,0.000269,7]
[313405624,1707319840951,-2624.4383986,0.000269,7]
[313405625,1707319840960,-155.92185583,0.0002697,2]
[313405626,1707319840971,-200.0,0.0002707,15]
[313405627,1707319840980,-150.0,0.0002739,2]
[313405628,1707319840989,-16863.74293338,0.00027396,2]
[313405629,1707319841001,-2083.93807018,0.00027396,2]